[Event "Paleochora op 14th"]
[Site "Paleochora"]
[Date "2021.07.30"]
[Round "9.2"]
[White "Theodorou, Nikolas"]
[Black "David, Alberto"]
[Result "1-0"]
[ECO "A05"]
[WhiteElo "2584"]
[BlackElo "2521"]
[Annotator "Kapnisis,Spyridon"]
[PlyCount "103"]
[EventDate "2021.07.23"]
[EventType "swiss"]
[EventRounds "9"]
[EventCountry "GRE"]
[SourceTitle "CBM 204 Extra"]
[Source "ChessBase"]
[SourceDate "2022.09.12"]
[SourceVersion "1"]
[SourceVersionDate "2022.09.12"]
[SourceQuality "1"]
[TimeControl "40/5400+30:900+30"]

{[%evp 0,103,28,40,34,-7,36,12,29,40,30,40,24,10,47,40,75,76,85,77,83,74,73,83,82,76,74,76,86,77,89,92,89,89,107,46,128,79,70,48,101,100,101,70,101,25,88,96,95,75,75,75,75,81,59,59,63,89,101,101,104,107,119,165,151,158,172,158,176,160,169,135,197,187,203,180,181,185,206,188,188,188,183,185,194,193,192,188,188,185,202,187,202,215,256,255,256,216,224,228,228,234,283,273,272,272]} 1. Nf3 Nf6 2. g3 b5 3. Bg2 Bb7 4. O-O e6 5. d3 d5 {[#]} (5... c5 {In my opinion, this is a more solid choice for black.} 6. e4 d6 (6... d5 $6 7. exd5 $1 {Allowing the opening of the center at this early stage is clearly in white's favour.} exd5 $6 (7... Qxd5 8. Nc3 (8. Bf4 $5) 8... Qc6 9. Bf4 Be7 10. a4 $16) (7... Nxd5 8. c4 $1 $16) 8. Nh4 (8. d4 $5) 8... Qd7 9. Qf3 Nc6 10. Re1+ Be7 11. Nf5 $18 {1-0 (23) Naiditsch,A (2649)-Sochacki,C (2494) Chalons en Champagne FRA 2021}) 7. e5 (7. a4 b4 8. a5 Be7 9. Nbd2 O-O 10. Nc4 $13 {1-0 (30) Amin,B (2704)-Nihal,S (2598) Brest FRA 2019}) 7... dxe5 8. a4 b4 9. Nxe5 Bxg2 10. Kxg2 $13 {1/2 (42) Maghsoodloo,P (2674)-Aleksandrov,A (2592) Moscow RUS 2020}) 6. c4 $1 {This is the most critical move and the real test of black's setup.} (6. Nbd2 {[%cal Ye2e4] followed by e4 is typical but white is not really counting on an opening advantage.}) 6... a6 (6... bxc4 7. dxc4 c6 (7... Nbd7 8. cxd5 exd5 9. Nc3 Bb4 10. Nh4 $1 Bxc3 11. bxc3 O-O 12. Nf5 $14 {0-1 (45) Rechlis,G (2519)-Gruenfeld,Y (2424) Israel ISR 2020} (12. c4 $5 $16)) 8. Nc3 {0-1 (33) Wallace,J (2415)-Moroni,L (2547) Caleta ENG 2018 followed by Qb3(c2),Rd1 and e4. White is clearly the one with the better chances.}) (6... dxc4 $2 {is clearly not the solution for black.} 7. dxc4 Qxd1 8. Rxd1 b4 (8... bxc4 9. Ne5 Bxg2 10. Kxg2 Nbd7 11. Nxc4 $16 {1/2 (45) Gordievsky,D (2653)-Liu,Y (2474) China CHN 2018}) 9. Bf4 Na6 10. Nbd2 Bd6 11. Nb3 Bxf4 12. gxf4 $18 {[%csl Ra6][%cal Yf3e5] 1-0 (49) Svane,R (2613)-Munkhgal,G (2501) chess.com INT 2020}) (6... c6 7. cxb5 (7. Qb3 $5) 7... cxb5 8. a4 b4 9. a5 Na6 $6 (9... Bd6 10. a6 $14) 10. Nbd2 Bd6 11. e4 $16 {1-0 (27) Rakhmanov,A (2638)-Mihalcisin,A (2467) Budva MNE 2019}) 7. cxd5 $1 Bxd5 (7... exd5 {White has a number of pleasant options.} 8. Nh4 (8. e4 $5 dxe4 9. dxe4 Qxd1 10. Rxd1 Bc5 (10... Nxe4 11. Ng5 {is difficult to play with black})) (8. a4 $5) 8... g6 9. e4 dxe4 10. Nc3 Bg7 11. dxe4 $16 {[%cal Ye4e5]}) (7... Nxd5 8. a4 (8. Bg5 $5 Be7 9. Bxe7 Qxe7 10. a4 $14) 8... Nb6 9. Nc3 b4 10. Ne4 Be7 11. Qc2 O-O 12. d4 $16 {1-0 (35) Vachier Lagrave,M (2811)-Krassowizkij,J (2438) Hockenheim GER 2016}) ({RR} 7... Nxd5 8. a4 Be7 9. axb5 axb5 10. Rxa8 Bxa8 11. Qb3 c6 12. Nc3 O-O 13. Bd2 b4 14. Ne4 c5 15. Rc1 Nd7 16. Be1 Bb7 17. Qd1 h6 18. Ned2 N5b6 19. Ne5 Bxg2 20. Nxd7 Qxd7 21. Kxg2 Qd5+ 22. Kg1 {Artemiev,V (2699)-Mamedyarov,S (2762) chess24.com INT 2021 ½-½ (89)}) 8. a4 b4 {[#] Black feels forced to play b4 which is a positional win for white. Black permanently weakens the important c4 square.} (8... Nbd7 $6 9. Nc3 Bc6 10. Qc2 $16 {[%csl Rc6]}) (8... Bb7 9. axb5 axb5 10. Rxa8 Bxa8 11. Qb3 Qd5 12. Qxd5 Nxd5 13. Nd4 b4 14. e4 Nb6 15. Be3 $16 {[%cal Yf1c1,Yb1d2] Black's queenside will be under considerable pressure}) 9. b3 $146 (9. e4 $5 Bb7 10. Be3 $16 {[%cal Yb1d2,Yd2b3,Ya1c1,Yd2c4] is another decent way of developing. Keeping the b3 square open for the white knight is certainly good for white.}) ({RR} 9. Nbd2 Be7 10. e4 Bb7 11. Nb3 c5 12. Be3 Nbd7 13. Nfd2 Rc8 14. Nc4 Nb6 15. Nba5 Nxc4 16. Nxc4 a5 17. Rc1 Ba6 18. Qe2 Nd7 19. Rfd1 O-O 20. f4 Qc7 21. b3 Rfd8 22. Qf2 Nb6 23. Bf3 Nxc4 {Lopez Martinez,J (2453)-Ayats Llobera,G (2457) Linares ESP 2024 ½-½ (31)}) 9... Be7 10. Bb2 O-O 11. Nbd2 c5 12. Rc1 Nbd7 {[#]} (12... Bb7 {Normally black should like to place his knight on c6 in order to control the important d4 square but he is not in time to stop white from playing d4.} 13. Nc4 Nc6 14. d4 $16 {White is better placed for the opening of the center and has a big advantage.}) 13. e4 $1 Bb7 14. Qe2 $16 {White will continue with Rfd1,Nc4 and d4 opening the center and using his better placed pieces.} a5 {Black decides to place his pawn on a5 in order to put his bishop to a6. Improving the bishop will come at a heavy price since the pawn on a5 will be a permanent target for the white knight who will come to c4. On the other hand it is difficult to suggest a good defending plan for black.} (14... Qc7 15. Nc4 Rfd8 16. Rfd1 Rac8 17. Nfd2 Bf8 (17... e5 18. Rf1 $40 {[%cal Yf2f4]}) 18. f4 $16) 15. Nc4 Ba6 (15... Nb6 16. Nfe5 $16) 16. Rfd1 Rc8 {[#]} 17. d4 {With the white pieces a lot better placed it is no wonder that white tries to open the center.} (17. h4 $5) (17. e5 $5 {Instead of opening the center with d4 white could have tried another interesting plan by playing e5,Nfd2-e4 and placing one of his knight to d6.} Nd5 18. Nfd2 $16 {[%cal Yd2e4,Ye4d6]} (18. h4 {[%cal Yf3g5]})) 17... Re8 {[#]} (17... cxd4 $2 {Opening the center will only help white.} 18. Nxd4 $18 {[%csl Ra5][%cal Yd4b5]}) 18. d5 $1 (18. Bf1 $16) (18. dxc5 Rxc5 19. Nfe5 {is better for white but 18.d5 feels like the right way to proceed.}) 18... exd5 19. exd5 Bd6 (19... Nb6 20. Nfe5 Bd6 21. Qc2 $16) 20. Qc2 Bxc4 (20... Qc7 21. Bf1 $16 Re7) 21. Qxc4 Nb6 22. Qb5 {[#]} c4 $5 {Black tries to complicate matters by trapping white's queen but white reacts calmly stopping black's threat of Rc5.} 23. Bd4 $1 (23. bxc4 $2 Rc5 24. Qa6 Qc7 25. Bd4) 23... Nbxd5 {[#]} (23... Nfxd5 24. bxc4 $18) (23... Nbd7 24. Rxc4 $18) 24. bxc4 $6 (24. Bh3 $1 {is an excellent intermediate move before taking on bxc4. Black's position is busted.} Rb8 (24... Rc7 25. bxc4 Nc3 26. Bxc3 bxc3 27. Qa6 $1 {[%csl Rd6]} Ne4 28. Bf5 $18) 25. Qxc4 $18) 24... Nc3 25. Bxc3 bxc3 26. Rxc3 Qc7 {[#]} 27. Nd4 (27. c5 $5 {leads to more forcing play and White probably wanted to avoid this for the moment.} Rb8 (27... Bxc5 28. Rdc1 Bxf2+ (28... Ne4 29. Rxc5 Nxc5 30. Bh3 $18 {The pin on the c file is an unsolvable problem for black.}) 29. Kf1 $1 Qxc3 $1 30. Rxc3 Rxc3 31. Kxf2 Rc5 $1 {White will still need to put some effort to prove that his material advantage is enough to win the game.}) 28. Qc4 Rb4 29. Rxd6 $1 Rxc4 30. Rxc4 $16 {White's R+B+P are stronger than black's queen who has a rather passive role.}) 27... Bb4 (27... Re5 28. Qb7 Bf8 29. Qxc7 Rxc7 30. Bc6 $16 {[%cal Yc6b5]}) 28. Rcc1 Ba3 29. Ra1 (29. Rc2) 29... Re5 (29... Bf8 30. Nb3 $16) 30. Qb7 {[#]} (30. Bd5 $5 {[%cal Yd4c6]} Rb8 31. Qc6 Qe7 32. Qa6 $18) 30... Bc5 $2 {This blunders the pawn on a5 and seals the fate of the game.} (30... Bf8 31. Qxc7 Rxc7 32. Bc6 $1 $16 {[%cal Yc6b5] Black's position is bad but at least he may be able to put up some resistance.}) 31. Qxc7 Rxc7 32. Nc6 {[%cal Yc6e5,Yc6a5]} Re8 33. Nxa5 Ng4 (33... Re2 $2 34. Rd8+) 34. Ra2 $18 h5 35. Bf3 Ne5 36. Bxh5 Bb6 37. Rd5 Ra7 38. Nb3 Nxc4 39. Be2 Na5 40. Nxa5 Bxa5 41. Bb5 Re1+ 42. Kg2 g6 43. h4 $1 Kg7 44. h5 {White opens up the position on the kingside in order to help the attack against the black king.} gxh5 45. Rxh5 Rc7 46. Bd3 Bb6 47. Rh7+ Kg8 48. Rb2 Re6 49. a5 Ba7 50. Rb4 $1 {The second rook joins the attack with decisive effect.} Rc3 51. Rg4+ Kf8 52. Rf4 1-0

[Event "GRENKE Chess Classic and Open 2024"]
[Site "Karlsruhe, Germany"]
[Date "2024.03.31"]
[Round "10"]
[White "Keymer, Vincent"]
[Black "Ding, Liren"]
[Result "1-0"]
[ECO "A09"]
[WhiteElo "2627"]
[BlackElo "2818"]
[Annotator "rafael"]
[PlyCount "61"]
[EventDate "2024.??.??"]
[TimeControl "2700+10"]

{[%evp 0,61,36,20,20,-25,-22,-6,12,-3,-3,-6,-1,-24,-25,-31,-24,-17,-25,-27,-14,-11,-3,6,1,-8,4,17,0,-13,12,-19,-21,-24,-25,-16,62,60,71,71,59,53,112,104,209,209,195,196,256,337,482,482,482,382,313,365,365,376,384,384,396,322,327,327]} 1. Nf3 d5 2. g3 Nf6 3. Bg2 g6 4. c4 dxc4 5. Qa4+ Nfd7 6. h4 {It's no wonder that capturing on c4 immediately is the most popular move, but there's nothing terribly wrong with the optimistic and thematic h-pawn advance.} ({RR} 6. Qxc4 Bg7 7. O-O O-O 8. d3 c5 9. Nc3 Nc6 10. Be3 b6 11. Qh4 Bb7 12. d4 cxd4 13. Nxd4 Nxd4 14. Bxd4 Bxg2 15. Kxg2 Nf6 16. Rfd1 Qc7 17. Rac1 Qb7+ 18. f3 Rfd8 19. Qf4 Rac8 20. Qe3 h5 {Grischuk,A (2777)-Aronian,L (2773) chess24.com INT 2020 0-1 (97)}) ({RR} 6. O-O Bg7 7. Qxc4 O-O 8. d3 Nb6 9. Qh4 Nc6 10. Nc3 a5 11. Bh6 f6 12. Bxg7 Kxg7 13. d4 Nb4 14. Rfd1 c6 15. Qf4 a4 16. e4 Nc4 17. Qc1 a3 18. bxa3 Nxa3 19. Qb2 {½-½ (19) Dunnington,A (2256)-Urh,Z (2256) Darlington ENG 2024}) 6... Nc6 $146 {Now Black is threatening Nb6, so the pawn has to be taken.} ({RR} 6... h5 7. Ng5 Bg7 8. Na3 O-O 9. Nxc4 Na6 10. O-O Nb6 11. Nxb6 axb6 12. d3 Bd7 13. Qc4 Nc5 14. Rb1 Bc6 15. Bxc6 bxc6 16. b4 Na4 17. Bd2 Qd5 18. Rfc1 Rfc8 19. Rc2 Qxc4 20. Rxc4 c5 21. bxc5 {Vulevic,V (2293)-Liepold,S (2254) Basel 2011 0-1 (83)}) 7. Qxc4 Bg7 {Black doesn't need to worry too much about the pawn advance to h5, but if he wanted he could play h7-h6 immediately, with the idea of responding to h4-h5 with g6-g5.} (7... h6) 8. Nc3 (8. h5 {is possible and perhaps even more natural—after all, why else bother advancing the pawn to h4 $2 In any case, Black's position is good after} Nb6 9. Qb3 Be6) 8... Nb6 9. Qb3 h6 {Black decides to take a prophylactic measure. This is a very common move when White advances the h-pawn. It serves two purposes: on the one hand, it prepares g6-g5 if the pawn continues to advance, while on the other hand, it takes away the g5-square from the white knight.} 10. d3 O-O 11. O-O e5 {Black has a fine and probably even slightly better position. He has finished development, has good central control, and White's queen is not well-placed on b3.} 12. Ne4 a5 $5 {[%c_effect a5;square;a5;type;Interesting;persistent;true] Preparing to bother White's queen with a5-a4. There are other good moves as well.} (12... Be6 {is fine, immediately attacking the queen.}) (12... Kh8 {was played in Kovacevic-Lanka, Pula 1993.}) 13. Bd2 Bg4 {One of the drawbacks of the pawn advance to h4 is that this bishop can no longer be attacked with h2-h3.} (13... a4 {is logical: again, the question is why advance the pawn to a5 if you're not going to keep advancing it $2}) (13... Be6 {This is the machine's favorite move.} 14. Qc2 Nd7 {Preventing Nc5, with a good position for Black.}) 14. Qd1 {Black was threatening Bxf3 followed by Nd4.} Nd5 15. Rc1 Nd4 {Starting now, Ding Liren plays a series of misguided moves. This is not a serious error, but it already puts Black in danger.} (15... Nce7 $1 {[%c_effect e7;square;e7;type;GreatFind;persistent;true] is better, preparing b6-c5, reinforcing the center and leaving the knight on e4 without a good attacking square.}) 16. Nxd4 exd4 17. Qb3 $1 {[%c_effect b3;square;b3;type;GreatFind;persistent;true] The threat of capturing the b7-pawn is unpleasant.} c6 $2 {[%c_effect c6;square;c6;type;Mistake;persistent;true]} (17... Bxe2 $2 {[%c_effect e2;square;e2;type;Mistake;persistent;true] is wrong:} 18. Rfe1 Bg4 19. Nc5 {with too many threats on the queenside.}) (17... b6 $2 {[%c_effect b6;square;b6;type;Mistake;persistent;true]} 18. Qxd5 $1 {[%c_effect d5;square;d5;type;GreatFind;persistent;true] This is an important tactical theme.} Qxd5 19. Nf6+ Bxf6 20. Bxd5 Rad8 21. Be4 {White wins a pawn, since both c7 and h6 are threatened.}) (17... a4 $1 {[%c_effect a4;square;a4;type;GreatFind;persistent;true] The best move.} 18. Qxb7 Rb8 19. Qc6 (19. Qxd5 Qxd5 20. Nf6+ Bxf6 21. Bxd5 Rxb2 22. Bxh6 Rd8 {leads to simplification and an equal positioin.}) 19... Rxb2 {Black has enough counterplay to keep the game equal.}) 18. Qxb7 $1 {[%c_effect b7;square;b7;type;GreatFind;persistent;true]} Bxe2 $2 {[%c_effect e2;square;e2;type;Mistake;persistent;true] Another mistake.} (18... Rb8 {is necessary:} 19. Qxc6 Rxb2 20. Rc2 Rxc2 21. Qxc2 Qc8 {with some chances of surviving in this position a pawn down.} (21... Bxe2 $6 {[%c_effect e2;square;e2;type;Inaccuracy;persistent;true] is worse:} 22. Re1 Bg4 23. Qc5 {with a clear advantage for White.})) 19. Rfe1 Bxd3 20. Nc5 $1 {[%c_effect c5;square;c5;type;GreatFind;persistent;true]} Rb8 (20... Bb5 {protects the pawn on c6, but not for long.} 21. a4 $1 {[%c_effect a4;square;a4;type;GreatFind;persistent;true]} (21. Nd7 {is also possible, but less convincing after} Qc8 $1 {[%c_effect c8;square;c8;type;GreatFind;persistent;true]} 22. Qxb5 Qxd7 23. Qxc6 Qxc6 24. Rxc6 Nb4) 21... Rb8 22. Qa7 Ra8 23. Qd7 Qxd7 24. Nxd7 {winning the exchange.}) 21. Qxc6 Rxb2 $2 {[%c_effect b2;square;b2;type;Mistake;persistent;true] The final error.} (21... Nb4 $1 {[%c_effect b4;square;b4;type;GreatFind;persistent;true] is the last hope.} 22. Bxb4 Bb5 $1 {[%c_effect b5;square;b5;type;GreatFind;persistent;true] The only way to save the piece.} 23. Ne6 $1 {[%c_effect e6;square;e6;type;GreatFind;persistent;true]} Bxc6 24. Nxd8 Rfxd8 25. Bxa5 Bxg2 {Now White must choose between a position a pawn up or an exchange up. Both should be winning.} 26. Kxg2 (26. Bxd8 Bd5) 26... Rd5 27. b4 {with two strong passed pawns.}) 22. Bxd5 Bb5 (22... Rxd2 {loses in many ways.} 23. Nxd3 (23. Nd7 {also wins easily.}) 23... Rxd3 24. Bxf7+ $1 {[%c_effect f7;square;f7;type;GreatFind;persistent;true]} Rxf7 (24... Kxf7 25. Qe6#) 25. Re8+ {winning the queen.}) 23. Qb7 d3 24. Ne6 {A nice winning move.} (24. Rb1 {is simple and good.}) 24... fxe6 25. Rxe6 Kh8 (25... Kh7 26. Bc3) 26. Rxg6 Bd7 27. Rxh6+ $1 {[%c_effect h6;square;h6;type;GreatFind;persistent;true]} Bxh6 28. Qxb2+ Bg7 29. Bc3 Bxc3 30. Qxc3+ Qf6 31. Be4 {Black will lose another pawn. The World Champion's terrible form persists.} 1-0

[Event "July 23 Late 2024"]
[Site "Chess.com"]
[Date "2024.07.23"]
[Round "1.4"]
[White "Andreikin, Dmitry"]
[Black "Koutlas, Nikolaos"]
[Result "1-0"]
[ECO "A05"]
[WhiteElo "3118"]
[BlackElo "2540"]
[PlyCount "123"]
[EventDate "2024.??.??"]
[WhiteTeam "FID"]
[BlackTeam "GRE"]
[TimeControl "180+1"]
[WhiteClock "0:01:27"]

1. Nf3 {[%emt 0:00:02]} ({RR} 1. b3 Nf6 2. Bb2 g6 3. c4 Bg7 4. g3 O-O 5. Bg2 c5 6. Nf3 {½-½ (13) Wallner,J (2261)-Schroll,G (2236) Austria AUT 2024}) 1... Nf6 {[%emt 0:00:06]} 2. b3 {[%emt 0:00:00]} g6 {[%emt 0:00:02]} 3. Bb2 {[%emt 0:00:02]} Bg7 {[%emt 0:00:01]} 4. c4 {[%emt 0:00:00]} c5 {[%emt 0:00:01]} 5. g3 {[%emt 0:00:01]} Nc6 {[%emt 0:00:01]} 6. Bg2 {[%emt 0:00:01]} O-O {[%emt 0:00:01]} 7. O-O {[%emt 0:00:02]} d5 {[%emt 0:00:02]} 8. cxd5 {[%emt 0:00:03]} Nxd5 {[%emt 0:00:00]} 9. Bxg7 {[%emt 0:00:01]} Kxg7 {[%emt 0:00:02]} 10. Qc1 {[%emt 0:00:02]} b6 {[%emt 0:00:06]} 11. Nc3 {[%emt 0:00:01]} Bb7 {[%emt 0:00:08]} 12. Rd1 {[%emt 0:00:01]} Rc8 {[%emt 0:00:05]} 13. Qb2 {[%emt 0:00:12]} Kg8 {[%emt 0:00:08]} 14. h4 $146 {[%emt 0:00:01]} h5 {[%emt 0:00:11]} 15. Nxd5 {[%emt 0:00:03]} Qxd5 {[%emt 0:00:02]} 16. Ng5 {[%emt 0:00:00]} Qd4 {[%emt 0:00:04]} 17. Qxd4 {[%emt 0:00:02]} cxd4 {[%emt 0:00:00]} 18. Rac1 {[%emt 0:00:01]} Na5 {[%emt 0:00:05]} 19. Bxb7 {[%emt 0:00:05]} Nxb7 {[%emt 0:00:00]} 20. Nf3 {[%emt 0:00:01]} d3 {[%emt 0:00:16]} 21. e3 {[%emt 0:00:04]} Nc5 {[%emt 0:00:06]} 22. Ne5 {[%emt 0:00:09]} Rfd8 {[%emt 0:00:15]} 23. Rc4 {[%emt 0:00:04]} a5 {[%emt 0:00:04]} 24. Rdc1 {[%emt 0:00:02]} Kg7 {[%emt 0:00:14]} 25. Rd4 {[%emt 0:00:01]} f6 {[%emt 0:00:12]} 26. Nxd3 {[%emt 0:00:12]} Nxd3 {[%emt 0:00:08]} 27. Rxc8 {[%emt 0:00:01]} Rxc8 {[%emt 0:00:02]} 28. Rxd3 {[%emt 0:00:01]} Rc2 {[%emt 0:00:06]} 29. a4 {[%emt 0:00:02]} Kf7 {[%emt 0:00:01]} 30. Kf1 {[%emt 0:00:03]} Ke6 {[%emt 0:00:01]} 31. Ke2 {[%emt 0:00:01]} Rb2 {[%emt 0:00:05]} 32. Rc3 {[%emt 0:00:05]} Kd7 {[%emt 0:00:04]} 33. f4 {[%emt 0:00:01]} Rb1 {[%emt 0:00:03]} 34. e4 {[%emt 0:00:03]} e5 {[%emt 0:00:04]} 35. fxe5 {[%emt 0:00:05]} fxe5 {[%emt 0:00:01]} 36. Kd3 {[%emt 0:00:01]} Re1 {[%emt 0:00:06]} 37. b4 {[%emt 0:00:04]} axb4 {[%emt 0:00:05]} 38. Rb3 {[%emt 0:00:01]} Kc6 {[%emt 0:00:06]} 39. Rxb4 {[%emt 0:00:01]} Rg1 {[%emt 0:00:01]} 40. Rb5 {[%emt 0:00:05]} Rxg3+ {[%emt 0:00:03]} 41. Kc4 {[%emt 0:00:00]} Ra3 {[%emt 0:00:09]} 42. Rxe5 {[%emt 0:00:11]} Rxa4+ {[%emt 0:00:02]} 43. Kd3 {[%emt 0:00:01]} Kd6 {[%emt 0:00:05]} 44. Rg5 {[%emt 0:00:04]} Ra3+ {[%emt 0:00:05]} 45. Kd4 {[%emt 0:00:01]} Rh3 {[%emt 0:00:02]} 46. Rxg6+ {[%emt 0:00:01]} Kc7 {[%emt 0:00:02]} 47. e5 {[%emt 0:00:01]} Rxh4+ {[%emt 0:00:02]} 48. Kd5 {[%emt 0:00:01]} Rg4 {[%emt 0:00:01]} 49. Rh6 {[%emt 0:00:01]} h4 {[%emt 0:00:03]} 50. Rh7+ {[%emt 0:00:01]} Kd8 {[%emt 0:00:01]} 51. d4 {[%emt 0:00:02]} b5 {[%emt 0:00:03]} 52. e6 {[%emt 0:00:16]} b4 {[%emt 0:00:02]} 53. Ke5 {[%emt 0:00:03]} b3 {[%emt 0:00:02]} 54. d5 {[%emt 0:00:01]} b2 {[%emt 0:00:01]} 55. Rb7 {[%emt 0:00:00]} Rg2 {[%emt 0:00:04]} 56. e7+ {[%emt 0:00:01]} Ke8 {[%emt 0:00:01]} 57. d6 {[%emt 0:00:00]} Re2+ {[%emt 0:00:02]} 58. Kf6 {[%emt 0:00:01]} Rf2+ {[%emt 0:00:01]} 59. Kg5 {[%emt 0:00:00]} Rd2 {[%emt 0:00:03]} 60. Rb8+ {[%emt 0:00:02]} Kd7 {[%emt 0:00:01]} 61. e8=Q+ {[%emt 0:00:00]} Kxd6 {[%emt 0:00:02]} 62. Qd8+ {[%emt 0:00:01]} 1-0